bitfinex-derivatives/quotes_SOLF0:USTF0_20240911
["timestamp","ask_amount","ask_price","bid_price","bid_amount"]
[1726018144724,9.11,134.94,134.87,9.11]
[1726018145225,1.353,134.95,134.81,1.3281]
[1726018145226,9.11,134.93,134.86,9.11]
[1726018145429,9.11,134.91,134.84,9.11]
[1726018145821,9.11,134.91,134.84,12.8177]
[1726018147034,9.11,134.91,134.85,3.7076]
[1726018147830,9.11,134.91,134.84,12.8178]
[1726018148326,9.11,134.91,134.85,3.7075]
[1726018148534,9.11,134.91,134.84,9.11]
[1726018148828,9.11,134.91,134.86,9.11]
[1726018149227,9.11,134.88,134.81,1.3281]
[1726018149434,9.11,134.88,134.82,12.8183]
[1726018149625,10.4384,134.9,134.83,9.11]
[1726018150428,1.3284,134.9,134.85,9.11]
[1726018150622,9.11,134.91,134.85,9.11]
[1726018152227,1.3169,134.96,134.81,1.3281]
[1726018152431,1.3169,134.96,134.9,9.11]
[1726018152733,1.3169,134.96,134.81,1.3281]
[1726018152734,9.11,134.95,134.87,9.11]
[1726018152931,9.11,134.94,134.86,9.11]
[1726018153129,1.3668,134.95,134.87,9.11]
[1726018153333,10.4768,134.95,134.87,9.11]
[1726018153734,10.4768,134.95,134.87,12.8169]
[1726018156830,9.11,134.97,134.89,9.11]
[1726018157036,9.11,134.94,134.88,13.177]
[1726018157339,9.11,134.94,134.88,16.8836]
[1726018157931,9.11,134.94,134.88,13.177]
[1726018160033,9.11,134.94,134.88,16.8837]
[1726018161041,9.11,134.94,134.88,13.177]
[1726018162142,9.11,134.94,134.88,10.4286]
[1726018170549,9.11,134.94,134.88,14.1354]
[1726018172047,9.11,134.94,134.88,10.4286]
[1726018172343,9.11,134.92,134.85,9.11]
[1726018175943,9.11,134.92,134.85,12.8175]
[1726018180561,9.11,134.92,134.84,3.7077]
[1726018180756,9.11,134.92,134.85,9.11]
[1726018183565,9.11,134.9,134.82,1.2806]
[1726018183859,9.11,134.9,134.83,9.11]
[1726018184452,9.11,134.9,134.83,12.818]
[1726018186362,5.03251531,134.98,134.85,9.11]
[1726018186660,9.11,134.92,134.85,9.11]
[1726018187256,9.11,134.91,134.84,9.11]
[1726018189363,9.11,134.91,134.85,9.11]
[1726018190968,9.11,134.91,134.83,9.11]
[1726018192365,9.11,134.85,134.82,1.2806]
[1726018192968,9.11,134.85,134.81,1.3556]
[1726018200169,9.11,134.85,134.79,9.11]
[1726018201473,9.11,134.85,134.78,2.7272]
[1726018201667,9.11,134.85,134.78,4.1106]
[1726018203870,9.11,134.83,134.78,4.1106]
[1726018204470,4.0477,134.9,134.78,4.1106]
[1726018204677,9.11,134.86,134.79,9.11]
[1726018205379,9.11,134.86,134.78,7.82]
[1726018205680,9.11,134.86,134.78,13.2206]
[1726018206079,9.11,134.84,134.78,13.2206]
[1726018207576,9.11,134.84,134.78,16.9301]
[1726018208979,9.11,134.86,134.8,9.11]
[1726018209778,9.11,134.85,134.78,4.1106]
[1726018210085,9.11,134.83,134.78,4.1106]
[1726018210481,9.11,134.82,134.78,2.7876]
[1726018210683,9.11,134.82,134.75,9.11]
[1726018210881,4.0477,134.9,134.73,4.174]
[1726018210882,9.11,134.81,134.73,4.174]
[1726018211085,9.11,134.81,134.74,9.11]
[1726018212381,9.11,134.79,134.73,13.284]
[1726018214186,9.11,134.78,134.73,13.284]
[1726018215386,9.11,134.78,134.71,7.37000427]
[1726018215686,2.7274,134.82,134.7,12.780576]
[1726018215687,9.11,134.77,134.7,12.780576]
[1726018215881,9.11,134.77,134.7,10.4462]
[1726018216079,9.11,134.77,134.7,11.8029]
[1726018216485,9.11,134.77,134.7,15.5146]
[1726018217392,9.11,134.77,134.7,16.9232]
[1726018217595,9.11,134.77,134.7,13.2115]
[1726018217784,9.11,134.81,134.74,9.11]
[1726018217983,9.11,134.81,134.76,9.11]
[1726018218892,10.4291,134.83,134.77,9.11]
[1726018219286,10.4291,134.83,134.77,12.8196]
[1726018219685,10.4291,134.83,134.77,9.11]
[1726018220188,9.11,134.81,134.7,4.1015]
[1726018220396,1.3191,134.83,134.72,9.11]
[1726018220397,9.11,134.79,134.72,9.11]
[1726018220591,9.11,134.78,134.72,9.11]
[1726018220985,9.11,134.78,134.71,9.11]
[1726018221696,9.11,134.78,134.71,12.8213]
[1726018222098,9.11,134.78,134.71,9.11]
[1726018223193,9.11,134.78,134.72,3.7111]
[1726018223389,1.3191,134.83,134.72,9.11]
[1726018223692,9.11,134.79,134.72,9.11]
[1726018223891,9.11,134.79,134.73,3.7107]
[1726018224898,9.11,134.79,134.71,3.7113]
[1726018225195,9.11,134.78,134.71,9.11]
[1726018225701,9.11,134.78,134.72,3.7111]
[1726018226697,9.11,134.78,134.72,12.8211]
[1726018228191,9.11,134.73,134.66,3.7126]
[1726018228392,2.6627,134.77,134.7,9.11]
[1726018228590,1.3191,134.83,134.71,9.11]
[1726018228591,9.11,134.78,134.71,9.11]
[1726018228795,9.11,134.76,134.7,9.11]
[1726018229800,2.7331,134.82,134.7,9.11]
[1726018230000,9.11,134.77,134.7,9.11]
[1726018230199,9.11,134.74,134.67,1.2916]
[1726018230995,3.7121,134.69,134.67,1.2916]
[1726018231397,3.7123,134.68,134.67,1.2916]
[1726018235000,9.11,134.74,134.67,10.4016]
[1726018236509,9.11,134.72,134.67,10.4016]
[1726018236713,9.11,134.72,134.67,1.2916]
[1726018238198,1.3224,134.75,134.67,1.2916]
[1726018238502,9.11,134.77,134.71,9.11]
[1726018238702,9.11,134.77,134.72,3.76456966]
[1726018239404,9.11,134.77,134.71,12.8213]
[1726018240410,9.11,134.77,134.71,9.11]
[1726018241807,9.11,134.77,134.71,12.8214]
[1726018242917,9.11,134.76,134.7,3.7116]
[1726018243602,9.11,134.76,134.71,3.7114]
[1726018243806,9.11,134.76,134.69,9.11]
[1726018244308,4.0498,134.81,134.67,1.2916]
[1726018244309,9.11,134.74,134.67,1.2916]
[1726018244516,9.11,134.74,134.67,10.4016]
[1726018244817,9.11,134.74,134.68,3.7121]
[1726018245416,4.0498,134.81,134.67,1.2916]
[1726018245417,9.11,134.73,134.67,1.2916]
[1726018246303,9.11,134.73,134.67,5.004]
[1726018248308,9.11,134.73,134.67,1.2916]
[1726018249916,9.11,134.7,134.66,1.338]
[1726018250918,9.11,134.72,134.66,1.338]
[1726018254220,9.11,134.7,134.66,1.338]
[1726018255411,9.11,134.7,134.64,3.7132]
[1726018257107,9.11,134.7,134.65,3.7129]
[1726018257321,9.11,134.71,134.65,12.8229]
[1726018257617,4.0946,134.74,134.64,2.7001]
[1726018257618,9.11,134.7,134.64,2.7001]
[1726018258016,9.11,134.7,134.64,6.4134]
[1726018258221,9.11,134.7,134.64,2.7001]
[1726018258422,9.11,134.68,134.64,1.3104]
[1726018258818,9.11,134.67,134.58,1.3897]
[1726018259018,9.11,134.65,134.59,10.4508]
[1726018259221,9.11,134.66,134.6,3.74712216]
[1726018259408,9.11,134.68,134.61,9.11]
[1726018260321,4.0946,134.74,134.62,9.11]
[1726018260516,4.0946,134.74,134.63,9.11]
[1726018260823,9.11,134.71,134.65,12.8231]
[1726018261816,4.0946,134.74,134.66,12.84365527]
[1726018262123,9.11,134.73,134.66,12.84365527]
[1726018262324,9.11,134.73,134.67,3.7125]
[1726018262624,9.11,134.71,134.65,9.11]
[1726018263016,9.11,134.71,134.66,3.7127]
[1726018263210,4.0946,134.74,134.66,3.7127]
[1726018263211,9.11,134.73,134.66,3.7127]
[1726018263418,9.11,134.69,134.59,4.97169491]
[1726018263720,9.11,134.68,134.61,9.11]
[1726018264427,9.11,134.68,134.62,3.7137]
[1726018264626,9.11,134.68,134.61,9.11]
[1726018265423,9.11,134.68,134.61,12.8241]
[1726018265618,9.11,134.68,134.61,3.7141]
[1726018265824,9.11,134.68,134.61,9.11]
[1726018266229,9.11,134.68,134.61,12.8241]
[1726018268927,4.0946,134.74,134.62,3.7138]
[1726018269125,9.11,134.68,134.62,12.8238]
[1726018271429,9.11,134.66,134.59,4.97169491]
[1726018271635,9.11,134.66,134.6,9.11]
[1726018271821,9.11,134.68,134.62,9.11]
[1726018272025,9.11,134.68,134.62,12.8237]
[1726018272826,9.11,134.69,134.63,9.11]
[1726018273032,4.0946,134.74,134.65,9.11]
[1726018273231,9.11,134.71,134.64,9.11]
[1726018273429,9.11,134.71,134.59,4.97169491]
[1726018273624,9.11,134.7,134.59,4.97169491]
[1726018273826,9.11,134.7,134.63,9.11]
[1726018274231,9.11,134.7,134.63,12.8235]
[1726018274622,9.11,134.7,134.63,9.11]
[1726018275031,9.11,134.7,134.63,12.8236]
[1726018275232,9.11,134.68,134.62,9.11]
[1726018275830,9.11,134.68,134.59,4.97169491]
[1726018276030,9.11,134.68,134.61,9.11]
[1726018276432,9.11,134.67,134.6,3.7144]
[1726018276638,9.11,134.67,134.59,4.97169491]
[1726018276825,9.11,134.67,134.6,9.11]
[1726018277030,9.11,134.67,134.6,12.8243]
[1726018277329,9.11,134.68,134.62,9.11]
[1726018278635,9.11,134.66,134.6,9.11]
[1726018279339,9.11,134.66,134.61,3.7142]
[1726018279540,4.0946,134.74,134.63,9.11]
[1726018279749,9.11,134.69,134.63,9.11]
[1726018279941,9.11,134.66,134.59,4.97169491]
[1726018280141,9.11,134.66,134.6,9.11]
[1726018280342,9.11,134.68,134.62,9.11]
[1726018280644,9.11,134.69,134.63,9.11]
[1726018280837,9.11,134.69,134.63,12.8236]
[1726018281240,9.11,134.68,134.62,9.11]
[1726018281439,9.11,134.68,134.62,12.8238]
[1726018282238,9.11,134.68,134.62,9.11]
[1726018283245,9.11,134.65,134.59,4.97169491]
[1726018283445,4.0946,134.74,134.6,12.8243]
[1726018283644,9.11,134.67,134.6,12.8243]
[1726018283848,4.0946,134.74,134.6,9.11]
[1726018284038,9.11,134.68,134.62,9.11]
[1726018284234,4.0946,134.74,134.59,4.97169491]
[1726018284441,9.11,134.67,134.61,9.11]
[1726018284637,9.11,134.67,134.61,12.8242]
[1726018284845,9.11,134.67,134.61,9.11]
[1726018285052,4.0946,134.74,134.62,9.11]
[1726018285242,9.11,134.69,134.63,12.8236]
[1726018286439,9.11,134.69,134.63,9.11]
[1726018287648,9.11,134.67,134.59,8.68619491]
[1726018287940,4.0946,134.74,134.62,9.11]
[1726018288143,9.11,134.69,134.62,9.11]
[1726018288345,4.0946,134.74,134.63,9.11]
[1726018288647,9.11,134.71,134.63,9.11]
[1726018289035,9.11,134.71,134.65,9.11]
[1726018289337,9.11,134.69,134.63,9.11]
[1726018289646,2.6938,134.74,134.66,9.11]
[1726018289847,9.11,134.73,134.66,16.52264594]
[1726018290048,9.11,134.73,134.66,12.81004594]
[1726018290345,2.6938,134.74,134.66,3.70004594]
[1726018290543,2.6938,134.74,134.66,3.7128]
[1726018290945,2.6938,134.74,134.65,5.0587]
[1726018291248,2.6938,134.74,134.65,1.3458]
[1726018291449,2.6938,134.74,134.65,5.0588]
[1726018291843,2.6938,134.74,134.65,1.3458]
[1726018292947,14.25,134.73,134.65,1.3458]
[1726018293542,14.25,134.73,134.62,14.25]
[1726018294051,14.25,134.69,134.6,1.3615]
[1726018294256,16.9438,134.74,134.6,1.3615]
[1726018294257,14.25,134.71,134.61,14.25]
[1726018294446,14.25,134.71,134.63,3.7134]
[1726018294844,14.25,134.71,134.61,14.25]
[1726018295149,14.25,134.71,134.62,3.7138]
[1726018295352,14.25,134.71,134.61,14.25]
[1726018295549,14.25,134.71,134.61,17.964]
[1726018295746,14.25,134.69,134.59,3.63089491]
[1726018295946,2.6196,134.68,134.59,3.63089491]
[1726018296344,2.6196,134.68,134.59,7.34549491]
[1726018296746,2.6196,134.68,134.59,3.7146]
[1726018297153,14.25,134.67,134.59,3.80339404]
[1726018297346,2.6196,134.68,134.59,18.05339404]
[1726018297949,15.6138,134.72,134.61,14.25]
[1726018298148,15.6138,134.72,134.63,3.7135]
[1726018298352,15.6138,134.72,134.61,14.25]
[1726018298652,14.25,134.7,134.6,3.7143]
[1726018298958,14.25,134.7,134.59,3.80339404]
[1726018299144,1.3767,134.69,134.59,3.80339404]
[1726018299345,1.3767,134.69,134.58,16.9459]
[1726018299346,1.3767,134.69,134.6,17.90639509]
[1726018299551,1.3767,134.69,134.6,14.25]
[1726018299750,1.3767,134.69,134.63,14.25]
[1726018300153,14.25,134.67,134.4,227.0]
[1726018300353,14.25,134.67,134.36,48.3737]
[1726018300354,14.25,134.67,134.55,14.25]
[1726018300563,17.92942399,134.67,134.55,14.25]
[1726018300858,17.92942399,134.67,134.55,16.9767]
[1726018301156,3.67942399,134.67,134.54,3.74925356]
[1726018301351,14.25,134.64,134.53,14.25]
[1726018301552,14.25,134.64,134.54,6.35300895]
[1726018301754,14.25,134.64,134.54,2.7267]
[1726018302558,14.25,134.64,134.54,4.1308]
[1726018303350,14.25,134.64,134.55,3.7158]
[1726018304056,1.3767,134.69,134.57,14.25]
[1726018304256,14.25,134.68,134.57,14.25]
[1726018304659,14.25,134.7,134.59,14.25]
[1726018304860,14.25,134.7,134.6,2.6001]
[1726018305160,14.25,134.68,134.6,2.6001]
[1726018305565,14.25,134.66,134.6,1.3073]
[1726018305861,14.25,134.66,134.55,15.5428]
[1726018306062,14.25,134.66,134.56,1.3073]
[1726018307352,14.25,134.64,134.56,1.3073]
[1726018309368,2.4798,134.72,134.36,227.0]
[1726018309579,2.4798,134.72,134.25,18.6207]
[1726018309580,14.25,134.58,134.47,1.338]
[1726018309771,14.25,134.56,134.47,1.338]
[1726018309971,15.2995,134.57,134.47,1.338]
[1726018311475,15.2995,134.57,134.47,5.056]
[1726018311678,15.2995,134.57,134.47,1.338]
[1726018312878,14.25,134.57,134.47,1.338]
[1726018313575,14.25,134.59,134.5,3.7172]
[1726018313768,14.25,134.59,134.48,14.25]
[1726018313974,14.25,134.59,134.49,1.3626]
[1726018314177,14.25,134.59,134.5,3.7172]
[1726018314374,14.25,134.59,134.5,1.3061]
[1726018315877,1.0495,134.61,134.52,3.7165]
[1726018315878,15.2995,134.61,134.52,3.7165]
[1726018316273,15.2995,134.61,134.51,3.7169]
[1726018318073,15.2995,134.61,134.5,15.5561]
[1726018318572,15.2995,134.61,134.53,3.7162]
[1726018318777,1.4431,134.62,134.52,14.25]
[1726018319274,1.4431,134.62,134.52,17.9665]
[1726018319871,1.4431,134.62,134.53,3.7164]
[1726018320182,1.4431,134.62,134.52,14.25]
[1726018320571,1.4431,134.62,134.52,17.9666]
[1726018320874,1.4431,134.62,134.52,14.25]
[1726018321073,1.4431,134.62,134.51,3.74990376]
[1726018321074,1.4431,134.62,134.51,7.46670376]
[1726018321475,14.25,134.6,134.5,15.5561]
[1726018322278,1.4431,134.62,134.5,15.5561]
[1726018322279,14.25,134.58,134.5,1.3061]
[1726018322477,14.25,134.56,134.49,1.3626]
[1726018322873,14.25,134.52,134.45,1.3029]
[1726018323274,14.25,134.52,134.43,1.3026]
[1726018323581,14.25,134.52,134.36,1.4158]
[1726018323582,14.25,134.47,134.36,14.25]
[1726018323786,14.25,134.47,134.37,2.5902]
[1726018324176,1.0502,134.51,134.23,227.0]
[1726018324177,14.25,134.45,134.23,227.0]
[1726018324380,1.0502,134.51,134.4,14.25]
[1726018325490,1.0502,134.51,134.41,1.278]
[1726018325675,0.1155,134.53,134.42,14.25]
[1726018326193,0.1155,134.53,134.42,22.84]
[1726018326786,24.2331,134.54,134.44,3.7189]
[1726018326984,24.2331,134.54,134.42,22.84]
[1726018327187,24.2331,134.54,134.44,22.84]
[1726018327188,1.3931,134.54,134.44,22.84]
[1726018327482,1.3931,134.54,134.44,26.5586]
[1726018327686,1.3931,134.54,134.44,22.84]
[1726018328087,1.3931,134.54,134.46,3.7182]
[1726018328293,1.3931,134.54,134.44,22.84]
[1726018329177,24.2331,134.54,134.42,22.84]
[1726018329588,24.2331,134.54,134.42,26.5593]
[1726018330388,24.2331,134.54,134.42,22.84]
[1726018331385,22.84,134.52,134.41,4.9977]
[1726018331572,22.84,134.52,134.41,1.278]
[1726018332283,22.84,134.49,134.41,1.278]
[1726018332878,22.84,134.49,134.39,1.2876]
[1726018333385,22.84,134.47,134.39,1.2876]
[1726018334185,22.84,134.47,134.37,1.393]
[1726018334491,3.78422619,134.5,134.37,1.393]
[1726018334492,22.84,134.45,134.37,1.393]
[1726018334976,22.84,134.43,134.29,1.3947]
[1726018335182,22.84,134.43,134.31,3.7225]
[1726018335382,22.84,134.41,134.3,2.7041]
[1726018336185,3.83811089,134.44,134.3,2.7041]
[1726018336392,22.84,134.38,134.3,2.7041]
[1726018336779,3.83811089,134.44,134.3,2.7041]
[1726018336984,22.84,134.41,134.3,6.4266]
[1726018337182,22.84,134.41,134.3,2.7041]
[1726018337488,22.84,134.41,134.26,3.71817775]
[1726018337694,22.84,134.43,134.31,22.84]
[1726018338179,25.3037,134.46,134.33,22.84]
[1726018338487,25.3037,134.46,134.34,2.6721]
[1726018338986,25.3037,134.46,134.35,22.84]
[1726018340993,22.84,134.43,134.34,2.6721]
[1726018341193,22.84,134.41,134.34,1.2816]
[1726018341596,22.84,134.41,134.3,5.0436]
[1726018341892,22.84,134.41,134.3,6.3982]
[1726018342089,22.84,134.41,134.3,2.6755]
[1726018342491,22.84,134.38,134.3,2.6755]
[1726018343406,22.84,134.38,134.27,1.3782]
[1726018343585,1.0532,134.37,134.27,1.3782]
[1726018343786,22.84,134.34,134.22,22.84]
[1726018344595,22.84,134.32,134.21,1.3641]
[1726018345187,22.84,134.3,134.2,2.7001]
[1726018345398,22.84,134.3,134.17,26.50681554]
[1726018345598,22.84,134.3,134.17,22.84]
[1726018345792,22.84,134.3,134.19,3.7256]
[1726018346089,22.84,134.3,134.18,1.3502]
[1726018346290,22.84,134.3,134.19,1.3126]
[1726018346492,22.84,134.3,134.19,5.0382]
[1726018346694,119.07352907,134.33,134.19,1.3126]
[1726018347003,22.84,134.31,134.19,24.1526]
[1726018347188,119.07352907,134.33,134.19,1.3126]
[1726018347497,22.84,134.32,134.21,3.725]
[1726018347695,22.84,134.32,134.2,22.84]
[1726018348099,119.07352907,134.33,134.2,22.84]
[1726018348491,22.84,134.31,134.2,22.84]
[1726018348691,22.84,134.31,134.19,1.3126]
[1726018349100,22.84,134.31,134.23,3.7245]
[1726018349401,119.07352907,134.33,134.19,24.1526]
[1726018349590,22.84,134.31,134.19,24.1526]
[1726018350203,22.84,134.31,134.24,3.7243]
[1726018350402,22.84,134.31,134.19,24.1526]
[1726018350599,119.07352907,134.33,134.22,22.84]
[1726018350797,119.07352907,134.33,134.25,3.724]
[1726018351397,119.07352907,134.33,134.23,1.4127]
[1726018353808,119.07352907,134.33,134.26,3.7239]
[1726018354003,119.07352907,134.33,134.23,1.4127]
[1726018354508,1.28,134.33,134.23,1.4127]
[1726018355605,1.28,134.33,134.24,3.7243]
[1726018356200,22.84,134.32,134.23,1.4127]
[1726018356403,1.28,134.33,134.19,1.3126]
[1726018356404,5.06389451,134.33,134.19,1.3126]
[1726018356706,22.84,134.3,134.19,2.7088]
[1726018356894,22.84,134.3,134.2,22.84]
[1726018357099,22.84,134.32,134.2,22.84]
[1726018357295,22.84,134.32,134.23,3.7245]
[1726018357499,22.84,134.32,134.2,22.84]
[1726018357910,1.28,134.33,134.22,22.84]
[1726018358112,1.28,134.33,134.23,3.76238357]
[1726018358304,22.9582,134.36,134.24,22.84]
[1726018358503,22.9582,134.36,134.25,1.4126]
[1726018358708,22.84,134.34,134.22,22.84]
[1726018359002,22.9582,134.36,134.24,22.84]
[1726018359203,22.9582,134.36,134.25,3.68750841]
[1726018359606,22.9582,134.36,134.27,3.7234]
[1726018359802,22.9582,134.36,134.26,2.7661]
[1726018360009,22.9582,134.36,134.26,25.6061]
[1726018360706,1.2838,134.38,134.26,25.6061]
[1726018360900,1.2838,134.38,134.28,22.84]
[1726018361307,1.2838,134.38,134.3,3.7227]
[1726018361508,1.2838,134.38,134.28,22.84]
[1726018361705,22.84,134.36,134.27,3.7235]
[1726018362011,22.84,134.36,134.26,2.7661]
[1726018362602,22.84,134.34,134.26,2.7661]
[1726018364110,1.0525,134.35,134.26,2.7661]
[1726018364608,1.0525,134.35,134.28,3.7231]
[1726018365204,1.0525,134.35,134.26,2.7661]
[1726018365608,1.2838,134.38,134.26,2.7661]
[1726018365909,1.2838,134.38,134.26,25.6061]
[1726018366906,1.2838,134.38,134.29,3.7229]
[1726018369113,1.2838,134.38,134.3,3.7228]
[1726018369307,1.2838,134.38,134.26,25.6061]
[1726018369705,22.84,134.36,134.26,2.7661]
[1726018370407,22.84,134.34,134.26,2.7661]
[1726018370613,22.84,134.34,134.26,1.4145]
[1726018370913,22.84,134.32,134.23,5.137]
[1726018371113,22.84,134.32,134.23,1.4126]
[1726018371314,22.84,134.29,134.17,25.5555]
[1726018371613,22.84,134.29,134.19,3.7258]
[1726018372211,22.84,134.29,134.17,29.2817]
[1726018372409,22.84,134.25,134.17,2.7155]
[1726018372709,2.3704,134.28,134.14,1.3891]
[1726018372906,22.84,134.23,134.14,1.3891]
[1726018373304,0.1152,134.26,134.11,26.62547486]
[1726018373613,22.84,134.23,134.11,26.6542014]
[1726018373813,22.84,134.23,134.12,3.7277]
[1726018374014,22.84,134.23,134.11,22.84]
[1726018374411,22.84,134.23,134.14,3.7272]
[1726018374611,22.84,134.23,134.11,22.84]
[1726018374913,22.84,134.25,134.11,22.84]
[1726018375913,22.84,134.25,134.14,22.84]
[1726018376413,22.84,134.25,134.1,5.06420769]
[1726018376607,22.84,134.25,134.12,22.84]
[1726018377004,22.84,134.25,134.15,3.7267]
[1726018377304,22.84,134.2,134.1,5.06420769]
[1726018377509,22.84,134.16,134.08,3.7288]
[1726018377707,22.84,134.18,134.05,22.84]
[1726018377903,1.3752,134.19,134.08,22.84]
[1726018378110,1.3752,134.19,134.04,4.0141]
[1726018378111,1.3752,134.19,134.1,22.84]
[1726018378412,0.1152,134.26,134.1,3.78605445]
[1726018378715,0.1152,134.26,134.04,4.0141]
[1726018378716,1.3752,134.26,134.17,22.84]
[1726018378915,22.84,134.24,134.14,1.3834]
[1726018380104,0.1145,134.25,134.11,2.6307]
[1726018380105,22.84,134.22,134.11,2.6307]
[1726018380305,22.84,134.24,134.12,22.84]
[1726018380507,0.1145,134.25,134.14,22.84]
[1726018380711,24.2152,134.26,134.18,3.7261]
[1726018381012,24.2152,134.26,134.14,22.84]
[1726018381319,24.2152,134.26,134.11,2.6307]
[1726018381320,22.84,134.24,134.11,2.6307]
[1726018381617,22.84,134.22,134.11,2.6307]
[1726018381818,1.0455,134.21,134.11,2.6307]
[1726018382018,1.0455,134.21,134.11,25.4707]
[1726018383208,22.84,134.19,134.11,1.2807]
[1726018384716,22.84,134.15,133.95,227.0]
[1726018384919,22.84,134.15,133.86,30.3099]
[1726018384920,2.4558,134.14,134.04,1.3091]
[1726018385121,2.4558,134.14,134.05,3.7296]
[1726018385323,2.4558,134.14,134.04,1.3091]
[1726018385533,22.84,134.1,133.98,22.84]
[1726018385826,25.2958,134.14,133.97,1.3091]
[1726018385827,22.84,134.08,133.97,1.3091]
[1726018386029,22.84,134.06,133.97,1.3091]
[1726018386216,1.2787,134.07,134.01,3.7308]
[1726018386421,1.2787,134.07,133.98,22.84]
[1726018387222,22.84,134.05,133.74,6.70194464]
[1726018387424,1.2787,134.07,133.96,22.84]
[1726018387719,22.84,134.12,134.01,22.84]
[1726018387913,22.84,134.12,134.04,3.7298]
[1726018388113,37.23,134.12,134.04,3.7298]
[1726018388321,37.23,134.12,134.0,37.23]
[1726018388824,38.2755,134.14,134.03,37.23]
[1726018389123,37.23,134.17,134.09,3.7286]
[1726018389329,37.23,134.17,134.05,37.23]
[1726018389815,37.23,134.17,134.09,3.7284]
[1726018390217,37.23,134.17,134.08,3.7288]
[1726018390421,37.23,134.17,134.05,37.23]
[1726018390827,2.5305,134.2,134.07,37.23]
[1726018392022,37.23,134.12,134.04,2.7421]
[1726018392212,37.23,134.12,134.04,5.1261]
[1726018392925,37.23,134.1,133.98,37.23]
[1726018393222,2.5236,134.13,133.96,38.5652]
[1726018393223,37.23,134.08,133.96,38.5652]
[1726018394117,37.23,134.08,134.02,3.7304]
[1726018394534,37.23,134.1,133.98,37.23]
[1726018394922,2.5236,134.13,133.97,1.4097]
[1726018394923,37.23,134.08,133.97,1.4097]
[1726018395119,37.23,134.03,133.96,1.3352]
[1726018395438,37.23,134.03,133.92,1.4097]
[1726018395629,37.23,134.03,133.92,2.7449]
[1726018396325,37.23,134.01,133.92,2.7449]
[1726018396627,37.23,134.01,133.88,37.23]
[1726018396822,37.23,134.01,133.87,1.2918]
[1726018396823,37.23,134.01,133.91,37.23]
[1726018397830,37.23,134.01,133.89,2.7761]
[1726018397831,37.23,134.01,133.89,40.0061]
[1726018398026,37.23,134.01,133.93,3.7328]
[1726018398233,37.23,134.01,133.89,40.0061]
[1726018399825,37.23,134.01,133.94,3.7326]
[1726018400032,37.23,134.01,133.89,40.0061]
[1726018400233,37.23,134.01,133.95,3.7325]